bitfinex/quotes_SOLUSD_20250624
["timestamp","ask_amount","ask_price","bid_price","bid_amount"]
[1750755808437,1.11699609,144.36,144.23,6.1749]
[1750755808942,20.81,144.35,144.23,6.1749]
[1750755809356,1.11699609,144.34,144.23,6.1749]
[1750755811152,1.11699609,144.34,144.23,7.7057]
[1750755812858,1.11699609,144.34,144.23,97.1057]
[1750755813454,27.79855136,144.37,144.23,97.1057]
[1750755813737,27.79855136,144.37,144.23,245.6057]
[1750755816933,20.95185681,144.37,144.23,245.6057]
[1750755817275,6.84669455,144.36,144.23,245.6057]
[1750755824839,6.84669455,144.36,144.24,8.1894]
[1750755825355,13.41773966,144.4,144.25,6.3673]
[1750755825567,20.26443421,144.4,144.26,1.5914]
[1750755825942,15.07959455,144.4,144.26,1.5914]
[1750755826645,20.26443421,144.4,144.26,1.5914]
[1750755826850,8.50619455,144.4,144.27,6.5426]
[1750755827073,8.50619455,144.4,144.28,1.6655]
[1750755827371,8.50619455,144.4,144.28,239.5655]
[1750755829764,8.64805136,144.4,144.28,239.5655]
[1750755829958,7.96369064,144.39,144.28,239.5655]
[1750755830267,8.10554745,144.39,144.28,91.0655]
[1750755830569,13.29038711,144.39,144.28,91.0655]
[1750755831065,5.18483966,144.38,144.28,91.0655]
[1750755831446,7.96369064,144.37,144.28,91.0655]
[1750755832164,13.1485303,144.37,144.28,91.0655]
[1750755832343,7.96369064,144.37,144.28,91.0655]
[1750755832543,13.1485303,144.37,144.28,91.0655]
[1750755832762,7.96369064,144.37,144.28,91.0655]
[1750755832958,5.32669647,144.36,144.28,91.0655]
[1750755833170,5.18483966,144.35,144.28,91.0655]
[1750755835471,5.18483966,144.34,144.28,91.0655]
[1750755835665,5.18483966,144.35,144.28,91.0655]
[1750755837774,5.18483966,144.34,144.28,91.0655]
[1750755837960,5.18483966,144.35,144.28,91.0655]
[1750755838658,25.99483966,144.35,144.28,91.0655]
[1750755838854,5.18483966,144.35,144.28,91.0655]
[1750755840199,5.18483966,144.34,144.28,91.0655]
[1750755840474,0.14185681,144.36,144.28,91.0655]
[1750755840475,5.18483966,144.33,144.28,89.4]
[1750755840653,5.18483966,144.32,144.28,89.4]
[1750755840855,5.18483966,144.31,144.25,1.5868]
[1750755841050,5.18483966,144.3,144.25,1.5868]
[1750755841263,5.18483966,144.29,144.25,1.5868]
[1750755841457,5.18483966,144.31,144.25,1.5868]
[1750755841671,5.18483966,144.3,144.25,1.5868]
[1750755841851,5.18483966,144.31,144.25,1.5868]
[1750755842053,5.18483966,144.3,144.23,95.649]
[1750755842251,5.18483966,144.29,144.23,95.649]
[1750755842452,5.23970926,144.31,144.23,95.649]
[1750755842673,5.18483966,144.3,144.23,95.649]
[1750755843055,5.18483966,144.29,144.23,95.649]
[1750755843277,5.18483966,144.3,144.23,95.649]
[1750755844458,5.18483966,144.3,144.23,6.249]
[1750755844655,5.23970926,144.29,144.22,1.5277]
[1750755844860,5.18483966,144.28,144.19,7.6904]
[1750755845076,5.18483966,144.27,144.19,7.6904]
[1750755845272,5.18483966,144.27,144.17,89.4]
[1750755845273,25.99483966,144.26,144.15,195.81122611]
[1750755845456,5.18483966,144.25,144.15,195.81122611]
[1750755845657,5.23970926,144.25,144.15,195.81122611]
[1750755846479,0.0548696,144.25,144.15,195.81122611]
[1750755851458,1.5294,144.28,144.15,344.31122611]
[1750755855085,0.0548696,144.27,144.15,344.31122611]
[1750755856582,0.0548696,144.27,144.15,195.81122611]
[1750755859088,6.0316,144.26,144.15,195.81122611]
[1750755859464,6.0864696,144.26,144.15,195.81122611]
[1750755860281,26.8416,144.26,144.15,195.81122611]
[1750755860482,0.0548696,144.25,144.15,195.81122611]
[1750755864687,0.0548696,144.25,144.15,194.18012611]
[1750755864984,1.5877,144.24,144.15,187.51492611]
[1750755865389,1.6425696,144.24,144.15,187.51492611]
[1750755867396,0.0548696,144.23,144.15,187.51492611]
[1750755869103,0.0548696,144.23,144.15,98.11492611]
[1750755870101,0.0548696,144.23,144.15,97.61492611]
[1750755873292,7.9695,144.22,144.15,97.61492611]
[1750755873878,1.5609,144.22,144.15,97.61492611]
[1750755874300,1.5609,144.22,144.15,187.01492611]
[1750755880191,9.26718712,144.25,144.15,187.01492611]
[1750755880792,14.45202678,144.25,144.15,187.01492611]
[1750755880994,5.18483966,144.24,144.15,187.01492611]
[1750755881182,14.45202678,144.25,144.15,187.01492611]
[1750755881385,5.18483966,144.24,144.15,187.01492611]
[1750755882506,5.18483966,144.23,144.15,187.01492611]
[1750755882707,5.18483966,144.24,144.15,187.01492611]
[1750755882909,5.18483966,144.23,144.15,187.01492611]
[1750755883109,5.18483966,144.24,144.15,187.01492611]
[1750755883408,5.18483966,144.23,144.15,187.01492611]
[1750755883604,15.71906267,144.25,144.15,187.01492611]
[1750755883605,5.18483966,144.22,144.15,187.01492611]
[1750755883785,5.18483966,144.21,144.15,187.01492611]
[1750755883987,11.63671521,144.24,144.15,187.01492611]
[1750755884209,5.18483966,144.23,144.15,187.01492611]
[1750755884386,5.18483966,144.22,144.15,187.01492611]
[1750755884709,5.18483966,144.21,144.15,97.61492611]
[1750755884914,5.18483966,144.2,144.15,97.61492611]
[1750755885119,5.18483966,144.19,144.15,97.61492611]
[1750755885417,5.17827388,144.21,144.15,97.61492611]
[1750755885709,5.17827388,144.2,144.15,97.61492611]
[1750755885897,5.17827388,144.19,144.1,6.5381]
[1750755886093,5.17827388,144.18,144.1,6.5381]
[1750755886516,5.17827388,144.19,144.1,6.5381]
[1750755886714,5.18043071,144.18,144.1,6.5381]
[1750755886893,3.26433367,144.2,144.1,6.5381]
[1750755887089,5.18042897,144.19,144.1,6.5381]
[1750755887293,5.18042897,144.18,144.1,6.5381]
[1750755887492,3.26433367,144.2,144.1,6.5381]
[1750755887712,5.18186927,144.19,144.1,6.5381]
[1750755888293,9.03270135,144.2,144.1,6.5381]
[1750755888493,5.18345428,144.19,144.1,6.5381]
[1750755888699,6.45187555,144.23,144.1,6.5381]
[1750755889013,11.63542127,144.22,144.1,95.9381]
[1750755889208,5.18354572,144.21,144.1,95.9381]
[1750755889513,5.18354572,144.2,144.1,95.9381]
[1750755889713,5.18354572,144.19,144.1,95.9381]
[1750755889907,12.05403651,144.22,144.1,95.9381]
[1750755890108,5.18574723,144.21,144.1,95.9381]
[1750755890308,5.18574723,144.2,144.1,95.9381]
[1750755890509,3.4055118,144.2,144.1,95.9381]
[1750755890688,13.71322117,144.23,144.1,95.9381]
[1750755890891,5.18562043,144.22,144.1,244.4381]
[1750755891110,5.18562043,144.21,144.1,244.4381]
[1750755891325,5.18562043,144.2,144.1,244.4381]
[1750755891527,13.71322117,144.23,144.1,244.4381]
[1750755891812,5.18565543,144.22,144.1,244.4381]
[1750755892014,5.18565543,144.21,144.1,244.4381]
[1750755892315,5.18565543,144.2,144.1,244.4381]
[1750755892517,5.18565543,144.22,144.1,244.4381]
[1750755892741,5.18565543,144.21,144.1,244.4381]
[1750755892893,5.18565543,144.2,144.1,244.4381]
[1750755893095,5.18565543,144.22,144.1,244.4381]
[1750755893295,5.18565543,144.21,144.1,244.4381]
[1750755893516,5.18565543,144.2,144.1,244.4381]
[1750755893702,5.18565543,144.22,144.1,244.4381]
[1750755893902,5.18565543,144.21,144.1,244.4381]
[1750755894223,5.18565543,144.2,144.12,6.1937]
[1750755894412,5.18565543,144.22,144.12,6.1937]
[1750755894595,5.18565543,144.21,144.12,6.1937]
[1750755894796,5.18565543,144.2,144.12,6.1937]
[1750755894997,5.18565543,144.22,144.12,95.5937]
[1750755895217,5.18565543,144.21,144.12,95.5937]
[1750755895412,5.18565543,144.2,144.12,95.5937]
[1750755895614,5.18565543,144.22,144.12,95.5937]
[1750755895809,5.18565543,144.21,144.12,95.5937]
[1750755896121,5.18565543,144.2,144.12,95.5937]
[1750755896320,10.73103125,144.23,144.12,95.5937]
[1750755896613,5.18557675,144.22,144.12,95.5937]
[1750755896818,5.18557675,144.21,144.12,95.5937]
[1750755897015,5.18557675,144.2,144.12,95.5937]
[1750755897201,10.73103125,144.23,144.12,95.5937]
[1750755897401,5.18612263,144.22,144.12,95.5937]
[1750755897607,5.18612263,144.21,144.12,95.5937]
[1750755897809,5.18612263,144.2,144.12,95.5937]
[1750755898122,17.1829068,144.23,144.12,95.5937]
[1750755898419,5.18706235,144.22,144.12,95.5937]
[1750755898623,5.18706235,144.21,144.12,95.5937]
[1750755898815,5.18706235,144.2,144.12,95.5937]
[1750755899119,17.1829068,144.23,144.12,95.5937]
[1750755899322,5.18805,144.22,144.12,95.5937]
[1750755899509,5.18805,144.21,144.12,95.5937]
[1750755899697,5.18805,144.2,144.12,95.5937]
[1750755899897,17.1829068,144.23,144.12,95.5937]
[1750755899898,5.18805,144.19,144.12,95.5937]
[1750755900097,5.18805,144.22,144.12,95.5937]
[1750755900319,5.18805,144.21,144.12,95.5937]
[1750755900518,5.18805,144.2,144.12,95.5937]
[1750755900718,17.1829068,144.23,144.12,95.5937]
[1750755900920,5.19025612,144.22,144.12,95.5937]
[1750755901106,5.19025612,144.21,144.14,6.1491]
[1750755901310,10.73103125,144.23,144.14,6.1491]
[1750755901513,5.18995806,144.22,144.14,6.1491]
[1750755901710,5.18995806,144.21,144.14,6.1491]
[1750755901907,6.45187555,144.24,144.14,6.1491]
[1750755902111,5.19016815,144.23,144.14,6.1491]
[1750755902315,5.19016815,144.22,144.16,6.0282]
[1750755902513,5.1891431,144.24,144.18,6.0282]
[1750755902800,9.26718712,144.25,144.18,95.4282]
[1750755903004,9.26718712,144.25,144.19,1.5985]
[1750755903213,10.83649069,144.28,144.19,90.9985]
[1750755903418,5.18764469,144.27,144.19,90.9985]
[1750755903611,6.45187555,144.3,144.19,90.9985]
[1750755903807,5.18499066,144.29,144.19,90.9985]
[1750755904024,5.18499066,144.28,144.2,6.2557]
[1750755904332,5.18499066,144.27,144.2,6.2557]
[1750755904517,5.18499066,144.3,144.2,95.6557]
[1750755904822,5.18499066,144.29,144.21,1.6426]
[1750755905025,5.18080812,144.3,144.22,6.3945]
[1750755905214,0.14185681,144.31,144.22,6.3945]
[1750755905416,5.18078105,144.3,144.22,6.3945]
[1750755905619,5.18050997,144.29,144.22,6.3945]
[1750755905819,5.18050997,144.3,144.22,6.3945]
[1750755906507,5.32236678,144.31,144.22,6.3945]
[1750755907333,5.18050997,144.3,144.22,6.3945]
[1750755907814,5.32236678,144.31,144.22,6.3945]
[1750755908009,5.18050997,144.3,144.22,6.3945]
[1750755908405,5.18050997,144.3,144.22,95.7945]
[1750755908825,5.18050997,144.29,144.22,6.3945]
[1750755909130,5.18050997,144.28,144.22,6.3945]
[1750755909327,5.18050997,144.27,144.22,6.3945]
[1750755909509,0.0548696,144.27,144.22,6.3945]
[1750755909927,5.23537957,144.27,144.22,6.3945]
[1750755910109,0.0548696,144.27,144.22,6.3945]
[1750755910310,5.23537957,144.27,144.22,6.3945]
[1750755910531,0.0548696,144.27,144.22,6.3945]
[1750755910733,5.23537957,144.27,144.22,6.3945]
[1750755910926,0.0548696,144.27,144.22,6.3945]
[1750755911316,5.23537957,144.27,144.22,6.3945]
[1750755911516,0.0548696,144.27,144.22,6.3945]
[1750755911949,5.23537957,144.27,144.22,6.3945]
[1750755912247,0.0548696,144.27,144.22,6.3945]
[1750755912611,5.23537957,144.27,144.22,6.3945]
[1750755912813,0.0548696,144.27,144.22,6.3945]
[1750755913234,5.23537957,144.27,144.22,6.3945]
[1750755913438,0.0548696,144.27,144.22,6.3945]
[1750755913839,5.23537957,144.27,144.22,6.3945]
[1750755914039,0.0548696,144.27,144.22,6.3945]
[1750755914424,5.23537957,144.27,144.22,6.3945]
[1750755914639,0.0548696,144.27,144.22,6.3945]
[1750755915025,5.23537957,144.27,144.22,6.3945]
[1750755915220,0.0548696,144.27,144.22,6.3945]
[1750755915624,5.23537957,144.27,144.22,6.3945]
[1750755915817,5.18050997,144.26,144.17,1.5115]
[1750755916143,5.23537957,144.26,144.17,90.9115]
[1750755916440,0.0548696,144.26,144.17,90.9115]
[1750755916842,5.23537957,144.26,144.17,90.9115]
[1750755917019,0.0548696,144.26,144.17,90.9115]
[1750755918843,0.0548696,144.26,144.18,6.3282]
[1750755921640,0.0548696,144.26,144.18,95.7282]
[1750755925857,5.1703764,144.25,144.18,6.3282]
[1750755926038,5.1703764,144.24,144.18,6.3282]
[1750755926229,0.0548696,144.24,144.18,6.3282]
[1750755926426,5.1703764,144.23,144.17,1.5115]
[1750755926650,5.1703764,144.22,144.15,6.6128]
[1750755926821,0.0548696,144.22,144.15,6.6128]
[1750755927026,5.225246,144.22,144.15,6.6128]
[1750755927238,0.0548696,144.22,144.15,6.6128]
[1750755927433,5.225246,144.22,144.15,6.6128]
[1750755927639,0.0548696,144.22,144.15,6.6128]
[1750755927840,5.225246,144.22,144.15,6.6128]
[1750755928140,0.0548696,144.22,144.15,6.6128]
[1750755928450,5.225246,144.22,144.15,6.6128]
[1750755928646,0.0548696,144.22,144.15,6.6128]
[1750755928835,5.225246,144.22,144.15,6.6128]
[1750755929039,0.0548696,144.22,144.15,6.6128]
[1750755931036,5.1703764,144.25,144.15,6.6128]
[1750755931235,5.1703764,144.26,144.15,6.6128]
[1750755931521,5.1703764,144.25,144.16,1.5322]
[1750755931747,5.1703764,144.26,144.16,1.5322]
[1750755931950,6.5178401,144.27,144.16,1.5322]
[1750755931951,5.1703764,144.25,144.16,1.5322]
[1750755932149,5.1703764,144.26,144.16,1.5322]
[1750755932446,5.1703764,144.25,144.16,1.5322]
[1750755932652,5.1703764,144.26,144.16,1.5322]
[1750755932948,5.1703764,144.25,144.16,1.5322]
[1750755933153,5.1703764,144.26,144.16,1.5322]
[1750755933344,5.1703764,144.25,144.16,1.5322]
[1750755933543,5.1703764,144.24,144.16,1.5322]
[1750755933746,5.1703764,144.26,144.16,1.5322]
[1750755934046,5.1703764,144.25,144.16,1.5322]
[1750755934242,5.1703764,144.26,144.16,1.5322]
[1750755934442,5.1703764,144.25,144.16,1.5322]
[1750755934641,5.1703764,144.24,144.16,1.5322]
[1750755934847,5.1703764,144.26,144.16,1.5322]
[1750755935042,5.1703764,144.25,144.16,1.5322]
[1750755935241,5.1703764,144.24,144.16,1.5322]
[1750755935452,5.1703764,144.26,144.16,1.5322]
[1750755935634,5.1703764,144.25,144.16,1.5322]
[1750755935829,5.1703764,144.24,144.16,1.5322]
[1750755936044,5.1703764,144.25,144.16,1.5322]
[1750755936251,5.1703764,144.24,144.16,1.5322]
[1750755936546,11.6333469,144.26,144.16,90.9322]
[1750755936755,5.1703764,144.25,144.16,90.9322]
[1750755937056,5.1703764,144.24,144.16,90.9322]
[1750755937252,5.1703764,144.23,144.16,90.9322]
[1750755937441,0.0548696,144.25,144.16,90.9322]
[1750755937442,5.1703764,144.24,144.16,90.9322]
[1750755938546,5.1703764,144.23,144.16,90.9322]
[1750755938839,5.1703764,144.24,144.16,90.9322]
[1750755939034,5.1703764,144.23,144.16,90.9322]
[1750755939239,5.1703764,144.24,144.16,90.9322]
[1750755939952,5.1703764,144.23,144.16,90.9322]
[1750755940164,5.1703764,144.24,144.16,90.9322]
[1750755940366,5.1703764,144.23,144.16,90.9322]
[1750755940556,0.0548696,144.25,144.16,90.9322]
[1750755940557,5.1703764,144.24,144.16,90.9322]
[1750755940860,5.1703764,144.23,144.16,90.9322]
[1750755941046,5.1703764,144.24,144.16,90.9322]
[1750755941241,5.1703764,144.23,144.16,90.9322]
[1750755941460,5.1703764,144.24,144.16,90.9322]
[1750755941761,5.1703764,144.23,144.16,90.9322]
[1750755941962,5.1703764,144.24,144.16,90.9322]
[1750755942262,5.1703764,144.23,144.16,90.9322]
[1750755942448,5.1703764,144.24,144.16,90.9322]
[1750755942748,5.1703764,144.23,144.16,90.9322]
[1750755942940,5.1703764,144.24,144.16,90.9322]
[1750755943140,5.1703764,144.23,144.16,90.9322]
[1750755943465,5.1703764,144.24,144.16,90.9322]
[1750755943656,5.1703764,144.23,144.16,90.9322]
[1750755943848,5.1703764,144.24,144.16,90.9322]
[1750755944047,5.1703764,144.23,144.16,90.9322]
[1750755944355,5.1703764,144.24,144.16,90.9322]
[1750755944658,5.1703764,144.23,144.16,90.9322]
[1750755944961,5.1703764,144.24,144.17,6.4814]
[1750755945158,5.1703764,144.23,144.18,1.6047]
[1750755945363,5.1703764,144.24,144.2,1.6047]
[1750755945555,5.1703764,144.26,144.2,1.6047]
[1750755945860,5.1703764,144.25,144.2,1.6047]
[1750755946061,5.1703764,144.24,144.2,1.6047]
[1750755946357,5.1703764,144.27,144.2,1.6047]
[1750755946558,5.1703764,144.26,144.2,1.6047]
[1750755946759,5.1703764,144.25,144.2,1.6047]
[1750755946961,5.1703764,144.24,144.2,1.6047]
[1750755947162,5.1703764,144.27,144.2,1.6047]
[1750755947455,5.1703764,144.26,144.2,1.6047]
[1750755947763,5.1703764,144.25,144.2,1.6047]
[1750755947955,5.1703764,144.24,144.2,1.6047]
[1750755948155,5.1703764,144.27,144.2,1.6047]
[1750755948357,5.1703764,144.26,144.2,1.6047]
[1750755948555,5.1703764,144.25,144.2,1.6047]
[1750755948744,5.1703764,144.27,144.2,1.6047]
[1750755948945,5.1703764,144.26,144.2,1.6047]
[1750755949151,5.1703764,144.25,144.2,1.6047]
[1750755949357,5.1703764,144.27,144.2,1.6047]
[1750755949583,5.1703764,144.26,144.2,1.6047]
[1750755949865,6.4629705,144.28,144.2,1.6047]
[1750755949866,5.1703764,144.25,144.2,1.6047]
[1750755950049,5.1703764,144.24,144.2,1.6047]
[1750755950248,5.1703764,144.27,144.2,1.6047]
[1750755950456,5.1703764,144.26,144.2,1.6047]
[1750755950659,5.1703764,144.25,144.2,1.6047]
[1750755950852,5.1703764,144.24,144.2,1.6047]
[1750755951052,5.1703764,144.27,144.2,91.0047]
[1750755951246,5.1703764,144.26,144.2,91.0047]
[1750755951464,5.1703764,144.25,144.2,91.0047]
[1750755951660,5.1703764,144.24,144.2,91.0047]
[1750755951859,6.4629705,144.28,144.2,91.0047]
[1750755952165,5.18387311,144.27,144.2,91.0047]
[1750755952367,5.18387311,144.26,144.2,91.0047]
[1750755952539,5.18387311,144.25,144.2,91.0047]
[1750755952743,5.18387311,144.24,144.2,91.0047]
[1750755952944,6.4629705,144.27,144.2,91.0047]
[1750755953144,5.18566396,144.26,144.2,91.0047]
[1750755953367,5.18566396,144.25,144.2,91.0047]
[1750755953663,5.18566396,144.24,144.2,91.0047]
[1750755953864,5.18566396,144.23,144.2,91.0047]
[1750755954067,6.4629705,144.27,144.2,91.0047]
[1750755954248,5.1873903,144.26,144.2,91.0047]
[1750755954450,5.1873903,144.25,144.2,91.0047]
[1750755954657,5.1873903,144.24,144.2,91.0047]
[1750755954859,5.1873903,144.23,144.2,91.0047]
[1750755955156,6.5178401,144.27,144.2,91.0047]
[1750755955363,5.18760044,144.26,144.2,91.0047]
[1750755955563,5.18760044,144.25,144.2,91.0047]
[1750755955872,5.18760044,144.24,144.2,91.0047]
[1750755956076,5.18760044,144.23,144.2,91.0047]
[1750755956265,5.18760044,144.22,144.2,91.0047]
[1750755956565,6.5178401,144.26,144.2,91.0047]
[1750755956783,5.18810937,144.25,144.2,91.0047]
[1750755956946,5.18810937,144.24,144.2,91.0047]
[1750755957147,5.18810937,144.23,144.2,91.0047]
[1750755957449,5.18810937,144.22,144.2,91.0047]
[1750755957647,6.5178401,144.26,144.2,91.0047]
[1750755957849,5.18829793,144.25,144.2,91.0047]
[1750755958049,5.18829793,144.24,144.2,91.0047]
[1750755958352,5.18829793,144.23,144.2,91.0047]
[1750755958548,5.18829793,144.22,144.2,91.0047]
[1750755958746,6.5178401,144.26,144.2,91.0047]
[1750755958963,5.18858328,144.25,144.2,91.0047]
[1750755959165,5.18858328,144.24,144.2,91.0047]
[1750755959473,5.18858328,144.23,144.2,91.0047]
[1750755959656,6.5178401,144.26,144.2,91.0047]
[1750755959852,5.18859129,144.25,144.2,91.0047]
[1750755960056,5.18859129,144.24,144.2,91.0047]
[1750755960373,5.18859129,144.23,144.2,91.0047]
[1750755960575,0.0548696,144.26,144.2,91.0047]
[1750755960745,5.1886213,144.25,144.2,91.0047]
[1750755960951,5.1886213,144.24,144.2,91.0047]
[1750755961169,5.1886213,144.23,144.2,91.0047]
[1750755961369,0.0548696,144.26,144.2,91.0047]
[1750755961569,5.18867263,144.25,144.2,91.0047]
[1750755961771,5.18867263,144.24,144.2,91.0047]
[1750755961973,5.18867263,144.23,144.2,91.0047]
[1750755962179,0.0548696,144.26,144.2,91.0047]
[1750755962379,5.18855518,144.25,144.2,91.0047]
[1750755962562,5.18855518,144.24,144.2,91.0047]
[1750755962861,5.18855518,144.23,144.2,91.0047]
[1750755963062,0.0548696,144.26,144.2,91.0047]
[1750755963363,5.18855415,144.25,144.2,91.0047]
[1750755963661,5.18855415,144.24,144.2,91.0047]
[1750755963861,5.18855415,144.23,144.2,91.0047]
[1750755964049,0.0548696,144.26,144.2,91.0047]
[1750755964263,5.18858935,144.25,144.2,91.0047]
[1750755964460,5.18858935,144.24,144.2,91.0047]
[1750755964662,5.18858935,144.23,144.2,91.0047]
[1750755964863,0.0548696,144.26,144.2,91.0047]
[1750755965064,5.1887518,144.25,144.2,91.0047]
[1750755965264,5.1887518,144.24,144.2,91.0047]
[1750755965471,5.1887518,144.23,144.2,91.0047]
[1750755965767,0.0548696,144.26,144.2,91.0047]
[1750755965962,5.18891414,144.25,144.2,91.0047]
[1750755966185,5.18891414,144.24,144.2,91.0047]
[1750755966384,5.18891414,144.23,144.2,91.0047]
[1750755966586,6.54060872,144.26,144.2,91.0047]
[1750755966885,5.18908558,144.25,144.2,91.0047]
[1750755967070,5.18908558,144.24,144.2,91.0047]
[1750755967258,5.18908558,144.23,144.2,91.0047]
[1750755967456,0.0548696,144.26,144.2,91.0047]
[1750755967661,5.18912287,144.25,144.2,91.0047]
[1750755967878,5.18912287,144.24,144.2,91.0047]
[1750755968061,5.18912287,144.23,144.2,91.0047]
[1750755968260,0.0548696,144.26,144.2,91.0047]
[1750755968559,5.18922364,144.25,144.2,91.0047]
[1750755968761,5.18922364,144.24,144.2,91.0047]
[1750755968957,5.18922364,144.23,144.2,91.0047]
[1750755969168,0.0548696,144.26,144.2,91.0047]
[1750755969369,5.18939175,144.25,144.2,91.0047]
[1750755969567,5.18939175,144.24,144.2,91.0047]
[1750755969768,5.18939175,144.23,144.2,91.0047]
[1750755969982,0.0548696,144.26,144.2,91.0047]
[1750755970183,5.18960876,144.25,144.2,91.0047]
[1750755970389,5.18960876,144.24,144.2,91.0047]
[1750755970589,5.18960876,144.23,144.2,91.0047]
[1750755970775,0.0548696,144.26,144.2,91.0047]
[1750755971092,5.18965501,144.25,144.2,91.0047]
[1750755971286,5.18965501,144.24,144.2,91.0047]
[1750755971592,5.18965501,144.23,144.2,91.0047]
[1750755971793,6.54060872,144.26,144.2,91.0047]
[1750755972089,5.19001371,144.25,144.2,91.0047]
[1750755972262,0.0548696,144.26,144.2,91.0047]
[1750755972263,5.19001371,144.24,144.2,91.0047]
[1750755972463,5.19001371,144.23,144.2,91.0047]
[1750755972692,0.0548696,144.26,144.2,91.0047]
[1750755972890,5.19093325,144.25,144.2,91.0047]
[1750755973094,5.19093325,144.24,144.2,91.0047]
[1750755973275,5.19093325,144.23,144.2,91.0047]
[1750755973485,6.54060872,144.26,144.2,91.0047]
[1750755973786,5.24742057,144.25,144.2,1.6047]
[1750755973995,5.19255097,144.24,144.2,1.6047]
[1750755974169,5.19255097,144.23,144.2,1.6047]
[1750755974368,5.19255097,144.22,144.2,1.6047]
[1750755974569,5.19255097,144.21,144.2,1.6047]
[1750755974870,6.54060872,144.25,144.2,1.6047]
[1750755975201,5.19368127,144.24,144.2,1.6047]
[1750755975410,5.19368127,144.23,144.2,1.6047]
[1750755975575,5.19368127,144.22,144.2,1.6047]
[1750755975775,0.0548696,144.25,144.2,1.6047]
[1750755975986,5.19430337,144.24,144.2,1.6047]
[1750755976177,5.19430337,144.23,144.2,1.6047]
[1750755976479,0.0548696,144.25,144.2,1.6047]
[1750755976676,5.19389859,144.24,144.2,1.6047]
[1750755976878,5.19389859,144.23,144.2,1.6047]
[1750755977078,0.0548696,144.25,144.2,1.6047]
[1750755977290,6.48573912,144.27,144.2,1.6047]
[1750755977291,5.19378004,144.24,144.2,1.6047]
[1750755977595,6.48573912,144.27,144.2,91.0047]
[1750755977802,5.19334561,144.26,144.2,91.0047]
[1750755978092,5.19334561,144.25,144.2,91.0047]
[1750755978311,5.19334561,144.24,144.2,91.0047]
[1750755978489,6.48573912,144.28,144.2,91.0047]
[1750755978680,5.19267369,144.27,144.2,91.0047]
[1750755979008,5.19267369,144.26,144.2,91.0047]
[1750755979174,5.19267369,144.25,144.2,91.0047]
[1750755979376,5.19267369,144.24,144.2,91.0047]
[1750755979675,6.48573912,144.28,144.2,91.0047]
[1750755979875,5.19240475,144.27,144.2,91.0047]
[1750755980080,5.19240475,144.26,144.2,91.0047]
[1750755980312,5.19240475,144.25,144.2,91.0047]
[1750755980502,6.48573912,144.28,144.2,91.0047]
[1750755980681,5.19191746,144.27,144.21,6.4984]
[1750755980884,5.19191746,144.26,144.21,6.4984]
[1750755981204,5.19191746,144.25,144.21,6.4984]
[1750755981406,6.48573912,144.28,144.21,95.8984]
[1750755981701,0.0548696,144.29,144.21,95.8984]
[1750755981702,5.19100737,144.27,144.21,95.8984]
[1750755981881,5.19100737,144.26,144.22,1.6621]
[1750755982076,6.54060872,144.29,144.22,1.6621]
[1750755982276,5.19126126,144.28,144.22,1.6621]
[1750755982578,5.19126126,144.27,144.22,1.6621]
[1750755982792,5.19126126,144.26,144.22,1.6621]
[1750755982997,0.0548696,144.29,144.22,1.6621]
[1750755983187,5.1902676,144.28,144.22,1.6621]
[1750755983386,5.1902676,144.27,144.22,1.6621]
[1750755983604,5.1902676,144.26,144.22,1.6621]
[1750755983782,0.0548696,144.29,144.22,1.6621]
[1750755983983,5.18925503,144.28,144.22,1.6621]
[1750755984303,5.18925503,144.27,144.22,1.6621]
[1750755984506,5.18732463,144.28,144.22,1.6621]
[1750755984682,7.90882104,144.31,144.22,1.6621]
[1750755984881,5.18736157,144.3,144.22,91.0621]
[1750755985095,5.18736157,144.29,144.22,91.0621]
[1750755985402,7.90882104,144.31,144.22,91.0621]
[1750755985600,5.1850843,144.3,144.23,6.2706]
[1750755985805,5.1850843,144.29,144.23,6.2706]
[1750755986003,7.90882104,144.31,144.23,6.2706]
[1750755986197,5.18507972,144.3,144.24,1.5426]
[1750755986515,5.18172911,144.3,144.24,1.5426]
[1750755986717,5.18172911,144.31,144.24,1.5426]
[1750755986920,5.18172911,144.3,144.24,1.5426]
[1750755987093,5.18172911,144.31,144.25,6.5103]
[1750755987294,0.14185681,144.32,144.25,95.9103]
[1750755987497,5.18182155,144.31,144.25,95.9103]
[1750755989025,5.18182155,144.3,144.25,95.9103]